bitfinex/quotes_SOLUSD_20241215
["timestamp","ask_amount","ask_price","bid_price","bid_amount"]
[1734290562372,1.5096,221.94,221.9,0.07]
[1734290567298,1.5096,221.94,221.9,0.19549]
[1734290567502,1.5096,221.94,221.9,7.0334481]
[1734290568169,0.67604607,221.98,221.9,7.0334481]
[1734290571585,0.67604607,221.98,221.9,0.07]
[1734290572003,0.67604607,221.98,221.9,6.9079581]
[1734290574998,0.67604607,221.98,221.9,6.8379581]
[1734290580420,0.67604607,221.98,221.88,6.8379581]
[1734290581607,0.67604607,221.98,221.89,6.8379581]
[1734290582890,0.67604607,221.98,221.9,6.8379581]
[1734290583208,0.67604607,221.98,221.89,6.8379581]
[1734290583986,0.67604607,221.98,221.9,6.8379581]
[1734290586590,0.67604607,221.98,221.89,6.8379581]
[1734290590219,0.67604607,221.98,221.9,6.8379581]
[1734290592300,0.67604607,221.98,221.91,6.8379581]
[1734290593817,0.67604607,221.98,221.91,6.9079581]
[1734290599231,0.67604607,221.98,221.92,6.8379581]
[1734290599432,0.67604607,221.98,221.92,6.9079581]
[1734290600843,0.67604607,221.98,221.92,6.8379581]
[1734290601141,0.67604607,221.98,221.91,6.8379581]
[1734290603740,0.67604607,221.98,221.92,0.07]
[1734290610169,0.67604607,221.98,221.88,0.12549]
[1734290610170,31.2627,221.97,221.84,7.04271837]
[1734290610339,0.67604607,221.96,221.84,7.04271837]
[1734290610775,1.5534,221.95,221.84,7.04271837]
[1734290611071,0.67604607,221.94,221.83,13.88067647]
[1734290611440,0.67604607,221.94,221.83,7.04271837]
[1734290611801,20.0,221.92,221.81,7.04271837]
[1734290611953,0.67604607,221.91,221.78,7.04271837]
[1734290612266,11.94194607,221.91,221.79,13.88067647]
[1734290612446,11.94194607,221.91,221.8,6.8379581]
[1734290615950,25.287584,221.9,221.77,6.01942025]
[1734290616173,20.0,221.87,221.75,7.04271837]
[1734290616375,1.5107,221.84,221.75,6.8379581]
[1734290616565,0.67604607,221.83,221.75,6.8379581]
[1734290617181,0.67604607,221.83,221.74,6.8379581]
[1734290617763,0.67604607,221.83,221.75,6.8379581]
[1734290619060,0.67604607,221.83,221.74,6.8379581]
[1734290619259,0.67604607,221.83,221.75,6.8379581]
[1734290623063,0.67604607,221.83,221.72,0.12549]
[1734290623281,20.67604607,221.83,221.73,6.8379581]
[1734290624168,20.67604607,221.83,221.66,30.48723862]
[1734290624169,20.67604607,221.83,221.69,44.027864]
[1734290624484,11.94614607,221.83,221.72,6.8379581]
[1734290625198,11.94614607,221.83,221.73,0.07]
[1734290633872,2.70738378,221.82,221.73,0.07]
[1734290634072,0.67604607,221.81,221.73,0.07]
[1734290638799,11.2714,221.8,221.73,0.07]
[1734290638969,0.67604607,221.79,221.73,0.07]
[1734290641195,0.67604607,221.8,221.73,6.9079581]
[1734290641405,0.67604607,221.8,221.74,6.8379581]
[1734290641574,0.67604607,221.83,221.74,6.8379581]
[1734290643674,0.67604607,221.83,221.76,6.8379581]
[1734290643880,0.67604607,221.83,221.77,6.8379581]
[1734290644376,0.67604607,221.83,221.78,6.8379581]
[1734290645098,0.67604607,221.87,221.8,6.8379581]
[1734290645608,0.67604607,221.89,221.8,6.8379581]
[1734290646693,20.67604607,221.89,221.79,6.8379581]
[1734290647409,0.67604607,221.89,221.8,6.8379581]
[1734290647579,0.67604607,221.89,221.81,6.8379581]
[1734290647779,0.67604607,221.89,221.82,6.8379581]
[1734290649002,0.67604607,221.89,221.81,6.8379581]
[1734290653484,0.67604607,221.89,221.82,6.8379581]
[1734290657593,1.5871,221.9,221.84,6.8379581]
[1734290659896,1.5871,221.9,221.85,6.8379581]
[1734290660299,0.67604607,221.95,221.87,6.8379581]
[1734290661224,0.67604607,221.95,221.88,6.8379581]
[1734290661396,0.67604607,221.95,221.87,6.8379581]
[1734290663801,0.67604607,221.95,221.88,6.8379581]
[1734290666017,0.67604607,221.95,221.85,0.12549]
[1734290666222,0.67604607,221.95,221.88,6.8379581]
[1734290668210,0.67604607,221.95,221.84,0.12549]
[1734290668413,0.67604607,221.95,221.87,6.8379581]
[1734290668828,0.67604607,221.95,221.88,6.8379581]
[1734290675310,0.67604607,221.95,221.84,0.25098]
[1734290675536,0.67604607,221.95,221.86,6.8379581]
[1734290678909,0.67604607,221.95,221.87,6.8379581]
[1734290679417,0.67604607,221.95,221.88,6.8379581]
[1734290684753,0.67604607,221.95,221.84,0.92693827]
[1734290684928,0.67604607,221.95,221.88,6.8379581]
[1734290685752,0.67604607,221.95,221.89,6.8379581]
[1734290686957,0.67604607,221.95,221.88,6.8379581]
[1734290690439,0.67604607,221.95,221.89,6.8379581]
[1734290695557,0.67604607,221.95,221.88,6.8379581]
[1734290700432,0.67604607,221.95,221.85,7.04271837]
[1734290700875,0.67604607,221.95,221.87,20.0]
[1734290702462,0.67604607,221.95,221.85,6.8379581]
[1734290703047,0.67604607,221.95,221.86,20.0]
[1734290703245,0.67604607,221.95,221.87,20.0]
[1734290705560,31.2643,221.94,221.83,7.04271837]
[1734290705763,0.67604607,221.93,221.83,7.04271837]
[1734290708272,0.67604607,221.93,221.83,13.88067647]
[1734290709549,0.67604607,221.93,221.84,7.04271837]
[1734290709855,0.67604607,221.93,221.83,13.88067647]
[1734290710056,0.67604607,221.93,221.83,6.8379581]
[1734290714048,0.67604607,221.93,221.85,6.8379581]
[1734290714252,0.67604607,221.95,221.85,6.8379581]
[1734290716077,3.40956857,221.95,221.85,6.8379581]
[1734290719373,0.67604607,221.95,221.85,6.8379581]
[1734290720058,0.67604607,221.95,221.86,23.776884]
[1734290725267,20.0,221.94,221.86,23.776884]
[1734290725470,0.67604607,221.93,221.86,23.776884]
[1734290727588,0.67604607,221.95,221.86,23.776884]
[1734290744512,0.67604607,221.95,221.86,30.81960237]
[1734290744700,0.67604607,221.95,221.86,23.776884]
[1734290749114,0.67604607,221.95,221.87,7.0889381]
[1734290749318,0.67604607,221.95,221.88,23.776884]
[1734290759426,0.67604607,221.95,221.87,23.902374]
[1734290760317,0.67604607,221.95,221.87,30.7403321]
[1734290764043,11.94014607,221.95,221.85,7.04271837]
[1734290764343,11.94014607,221.95,221.84,7.04271837]
[1734290765541,11.94014607,221.95,221.85,23.776884]
[1734290769550,1.5066,221.94,221.85,23.776884]
[1734290769742,0.67604607,221.93,221.84,23.776884]
[1734290773047,0.67604607,221.93,221.84,30.81960237]
[1734290775525,0.67604607,221.93,221.84,37.65756047]
[1734290777555,0.67604607,221.93,221.86,23.776884]
[1734290784133,0.67604607,221.93,221.85,23.776884]
[1734290785560,0.67604607,221.93,221.86,0.12549]
[1734290785769,2.18264607,221.94,221.88,23.776884]
[1734290785938,1.5066,221.94,221.89,23.776884]
[1734290791065,1.5066,221.94,221.88,23.902374]
[1734290791280,1.5066,221.94,221.88,30.7403321]
[1734290791657,1.5066,221.94,221.89,0.07]
[1734290793070,0.67604607,221.93,221.89,0.07]
[1734290795340,0.67604607,221.93,221.87,23.776884]
[1734290798179,1.5066,221.94,221.87,23.776884]
[1734290802168,1.5066,221.94,221.87,30.6148421]
[1734290802366,1.5066,221.94,221.89,0.12549]
[1734290802672,1.5066,221.94,221.89,30.7403321]
[1734290804782,1.5066,221.94,221.89,0.12549]
[1734290805081,1.5066,221.94,221.89,23.902374]
[1734290810192,1.5066,221.94,221.88,0.12549]
[1734290814477,1.5066,221.94,221.88,0.19549]
[1734290824085,1.5066,221.94,221.88,7.0334481]
[1734290827696,1.5066,221.94,221.88,14.07616647]
[1734290827896,1.5066,221.94,221.88,14.00616647]
[1734290828075,1.5066,221.94,221.88,6.9634481]
[1734290828389,1.5066,221.94,221.88,14.00616647]
[1734290829797,13.4331711,221.99,221.91,6.8379581]
[1734290829971,2.1709711,221.99,221.92,23.902374]
[1734290830289,0.67604607,221.98,221.92,0.12549]
[1734290832564,0.67604607,221.98,221.91,0.12549]
[1734290834598,20.0,221.97,221.86,7.04271837]
[1734290834801,0.67604607,221.96,221.85,7.04271837]
[1734290835496,0.67604607,221.96,221.86,0.12549]
[1734290835695,0.67604607,221.98,221.86,0.12549]
[1734290836400,11.2627,221.97,221.85,0.12549]
[1734290836725,0.67604607,221.96,221.85,14.00616647]
[1734290838195,0.67604607,221.96,221.85,7.16820837]
[1734290838393,0.67604607,221.96,221.87,20.0]
[1734290839615,12.8001,221.95,221.84,7.04271837]
[1734290839913,0.67604607,221.94,221.82,13.88067647]
[1734290840110,0.67604607,221.94,221.83,0.12549]
[1734290841616,0.67604607,221.94,221.83,6.8379581]
[1734290841910,0.67604607,221.94,221.84,0.12549]
[1734290843317,0.67604607,221.94,221.83,0.12549]
[1734290845896,0.67604607,221.94,221.83,0.19549]
[1734290846795,0.67604607,221.94,221.84,0.07]
[1734290847516,0.67604607,221.94,221.83,0.12549]
[1734290848914,0.67604607,221.94,221.82,6.5889381]
[1734290850331,0.67604607,221.94,221.84,0.07]
[1734290858218,20.0,221.92,221.84,0.07]
[1734290858403,0.67604607,221.91,221.84,0.07]
[1734290863500,20.0,221.92,221.84,0.07]
[1734290863716,20.0,221.92,221.84,6.9079581]
[1734290864113,0.67604607,221.94,221.84,6.9079581]
[1734290864423,0.67604607,221.94,221.85,6.8379581]
[1734290866319,0.67604607,221.94,221.86,0.12549]
[1734290866510,2.21244607,221.95,221.87,6.8379581]
[1734290867206,2.21244607,221.95,221.87,0.12549]
[1734290870609,2.21244607,221.95,221.87,6.8379581]
[1734290873219,2.21244607,221.95,221.86,6.9634481]
[1734290875824,2.21244607,221.95,221.84,0.07]
[1734290876041,2.21244607,221.95,221.84,6.9079581]
[1734290878631,2.21244607,221.95,221.85,20.0]
[1734290879226,20.0,221.93,221.84,0.07]
[1734290879435,0.67604607,221.92,221.84,0.07]
[1734290881443,0.67604607,221.94,221.84,0.07]
[1734290883343,1.6028,221.92,221.84,0.07]
[1734290883647,0.67604607,221.91,221.84,0.07]
[1734290887146,0.67604607,221.91,221.81,6.8379581]
[1734290887347,2.27884607,221.92,221.83,6.8379581]
[1734290887560,2.27884607,221.92,221.84,6.8379581]
[1734290887851,2.27884607,221.92,221.83,6.8379581]
[1734290896139,2.27884607,221.92,221.84,6.8379581]
[1734290897261,2.27884607,221.92,221.83,7.04271837]
[1734290897653,2.27884607,221.92,221.83,13.88067647]
[1734290901253,2.27884607,221.92,221.83,7.04271837]
[1734290902446,2.27884607,221.92,221.82,14.68227718]
[1734290905242,2.27884607,221.92,221.84,0.07]
[1734290908255,2.27884607,221.92,221.84,5.0]
[1734290916274,2.27884607,221.92,221.84,11.8379581]
[1734290916473,1.6028,221.92,221.85,6.8379581]
[1734290916686,1.6028,221.92,221.84,5.67602304]
[1734290916687,1.6028,221.92,221.86,6.8379581]
[1734290917056,1.6028,221.92,221.85,6.8379581]
[1734290919492,1.6028,221.92,221.84,5.67602304]
[1734290919657,1.6028,221.92,221.85,6.8379581]
[1734290923487,1.6028,221.92,221.85,13.88067647]
[1734290924061,1.6028,221.92,221.85,6.8379581]
[1734290924263,1.6028,221.92,221.85,13.88067647]
[1734290924481,1.6028,221.92,221.85,6.8379581]
[1734290925398,1.6028,221.92,221.85,13.88067647]
[1734290927777,1.6028,221.92,221.85,6.8379581]
[1734290928167,1.6028,221.92,221.84,18.88067647]
[1734290929990,1.6028,221.92,221.85,7.04271837]
[1734290931482,1.6028,221.92,221.84,18.88067647]
[1734290934011,1.6028,221.92,221.84,12.04271837]
[1734290935184,0.67604607,221.91,221.84,5.0]
[1734290944485,0.67604607,221.91,221.85,0.07]
[1734290944926,11.94204607,221.91,221.85,0.07]
[1734290945073,1.5552,221.89,221.85,0.07]
[1734290945282,0.67604607,221.88,221.85,0.07]
[1734290945694,0.67604607,221.88,221.84,5.0]
[1734290947324,11.94344607,221.88,221.84,5.0]
[1734290958539,0.67604607,221.88,221.84,5.0]
[1734290968425,2.7395264,221.87,221.84,5.0]
[1734290968629,0.67604607,221.86,221.84,5.0]
[1734290969241,0.67604607,221.88,221.84,5.0]
[1734290973039,2.71707676,221.87,221.84,5.0]
[1734290973379,0.67604607,221.86,221.84,5.0]
[1734290984992,11.94454607,221.86,221.84,5.0]
[1734291007196,0.12549,221.85,221.84,5.0]
[1734291007804,24.027864,221.85,221.84,0.0001]
[1734291008295,20.0,221.82,221.74,7.04271837]
[1734291008504,20.0,221.82,221.71,28.19303098]
[1734291008505,0.80153607,221.81,221.71,7.04271837]
[1734291008695,0.80153607,221.81,221.7,13.52241837]
[1734291008874,0.80153607,221.81,221.7,6.4797]
[1734291009294,20.0,221.77,221.7,6.4797]
[1734291009493,0.67604607,221.76,221.7,6.4797]
[1734291010402,0.67604607,221.76,221.69,1.6089]
[1734291010576,0.67604607,221.76,221.7,0.07]
[1734291012387,0.67604607,221.76,221.69,1.6089]
[1734291012591,0.67604607,221.76,221.66,19.33707835]
[1734291012776,0.67604607,221.76,221.67,0.07]
[1734291014176,0.67604607,221.76,221.67,6.9079581]
[1734291014380,0.67604607,221.76,221.7,6.8379581]
[1734291014605,11.39679,221.81,221.7,6.8379581]
[1734291014606,20.0,221.78,221.7,6.8379581]
[1734291014908,0.67604607,221.77,221.7,6.8379581]
[1734291015280,0.67604607,221.77,221.69,6.8379581]
[1734291015495,0.67604607,221.77,221.7,0.07]
[1734291016579,0.67604607,221.77,221.7,6.9079581]
[1734291016795,0.67604607,221.8,221.71,6.8379581]
[1734291017612,0.67604607,221.8,221.7,0.07]
[1734291017907,11.2719,221.79,221.7,0.07]
[1734291018213,23.776884,221.77,221.7,0.07]
[1734291018381,0.67604607,221.76,221.7,0.07]
[1734291019277,0.67604607,221.76,221.66,6.4797]
[1734291019482,23.776884,221.75,221.64,1.6089]
[1734291019693,20.0,221.72,221.61,19.17947835]
[1734291019908,23.902374,221.7,221.61,6.01942025]
[1734291020085,20.0,221.67,221.55,7.04271837]
[1734291020296,0.67604607,221.66,221.54,13.88067647]
[1734291020715,0.67604607,221.66,221.58,6.8379581]
[1734291021030,0.67604607,221.69,221.61,6.8379581]
[1734291021616,20.0,221.7,221.63,6.8379581]
[1734291021796,0.67604607,221.69,221.63,6.8379581]
[1734291022214,0.67604607,221.72,221.63,6.8379581]
[1734291025437,20.0,221.69,221.59,6.3584]
[1734291025636,0.67604607,221.68,221.59,6.3584]
[1734291026194,0.67604607,221.68,221.6,6.8379581]
[1734291026425,20.0,221.69,221.61,6.8379581]
[1734291026921,0.67604607,221.7,221.64,6.8379581]
[1734291027093,0.67604607,221.7,221.6,0.12549]
[1734291027094,0.67604607,221.72,221.65,6.8379581]
[1734291027298,0.67604607,221.72,221.62,0.12549]
[1734291027503,0.67604607,221.72,221.65,6.8379581]
[1734291027699,0.67604607,221.72,221.64,6.8379581]
[1734291028119,0.67604607,221.72,221.62,0.12549]
[1734291028301,0.67604607,221.73,221.63,6.8379581]
[1734291028507,0.67604607,221.73,221.64,6.8379581]
[1734291029224,0.67604607,221.73,221.65,6.8379581]
[1734291029699,0.67604607,221.76,221.68,6.8379581]
[1734291030121,0.67604607,221.78,221.69,6.8379581]
[1734291031319,20.67604607,221.78,221.69,6.8379581]
[1734291031524,20.67604607,221.78,221.67,6.8379581]
[1734291031908,20.67604607,221.78,221.68,6.8379581]
[1734291034429,20.67604607,221.78,221.69,0.07]
[1734291037236,20.67604607,221.78,221.67,6.8379581]
[1734291037726,20.67604607,221.78,221.64,20.12549]
[1734291037904,20.67604607,221.78,221.67,6.8379581]
[1734291039831,20.67604607,221.78,221.68,6.8379581]
[1734291040215,20.67604607,221.78,221.69,0.07]
[1734291041314,0.67604607,221.78,221.69,0.07]
[1734291041543,11.94864607,221.78,221.69,0.07]
[1734291044123,0.67604607,221.78,221.7,6.8379581]
[1734291044843,0.67604607,221.78,221.7,6.9079581]
[1734291045619,21.6111,221.79,221.71,6.8379581]
[1734291046009,21.6111,221.79,221.7,7.58433763]
[1734291046323,0.67604607,221.78,221.7,6.9079581]
[1734291046513,0.67604607,221.78,221.7,0.07]
[1734291049042,0.67604607,221.78,221.65,26.8379581]
[1734291049244,0.67604607,221.78,221.66,6.8379581]
[1734291050631,23.776884,221.77,221.66,6.8379581]
[1734291050826,0.67604607,221.76,221.66,6.8379581]
[1734291052454,23.776884,221.75,221.65,20.0]
[1734291052620,0.67604607,221.74,221.65,20.0]
[1734291053153,0.67604607,221.74,221.64,6.8379581]
[1734291057557,1.5041,221.73,221.64,6.8379581]
[1734291057759,0.67604607,221.72,221.64,6.8379581]
[1734291058262,0.67604607,221.72,221.63,6.8379581]
[1734291058453,0.67604607,221.72,221.64,6.8379581]
[1734291059871,0.67604607,221.72,221.65,6.8379581]
[1734291060040,1.5041,221.73,221.66,6.8379581]
[1734291061278,1.5041,221.73,221.65,7.04271837]
[1734291061279,0.67604607,221.75,221.68,6.8379581]
[1734291061457,0.67604607,221.77,221.68,6.8379581]
[1734291061641,20.67604607,221.77,221.68,6.8379581]
[1734291062161,0.67604607,221.77,221.7,6.8379581]
[1734291062339,1.5235,221.78,221.73,6.8379581]
[1734291062538,2.19954607,221.83,221.73,6.8379581]
[1734291063749,23.776884,221.82,221.71,6.8379581]
[1734291063945,0.67604607,221.81,221.71,6.8379581]
[1734291064373,0.67604607,221.81,221.72,6.8379581]
[1734291064876,0.67604607,221.81,221.71,6.8379581]
[1734291065442,0.67604607,221.81,221.72,6.8379581]
[1734291065745,0.67604607,221.81,221.69,7.71909495]
[1734291065960,0.67604607,221.81,221.72,6.8379581]
[1734291067140,0.67604607,221.81,221.73,0.07]
[1734291067337,0.67604607,221.82,221.73,6.9079581]
[1734291067540,2.19954607,221.83,221.74,6.8379581]
[1734291068142,2.19954607,221.83,221.74,6.9079581]
[1734291069468,21.5235,221.83,221.75,6.8379581]
[1734291070169,21.5235,221.83,221.74,20.67627622]
[1734291070170,1.5235,221.83,221.74,20.67627622]
[1734291070462,1.5235,221.88,221.79,6.8379581]
[1734291071469,21.5235,221.88,221.79,6.8379581]
[1734291071640,0.67604607,221.87,221.78,6.8379581]
[1734291072673,0.67604607,221.87,221.79,0.07]
[1734291073277,0.67604607,221.87,221.79,6.9079581]
[1734291074281,21.5235,221.88,221.79,6.9079581]
[1734291074573,21.5235,221.88,221.8,6.8379581]
[1734291074877,21.5235,221.88,221.8,6.9079581]
[1734291075082,0.67604607,221.87,221.8,6.9079581]
[1734291075465,21.5235,221.88,221.8,6.9079581]
[1734291075660,1.5235,221.88,221.8,6.9079581]
[1734291077662,0.67604607,221.87,221.8,6.9079581]
[1734291077983,0.67604607,221.87,221.8,0.07]
[1734291078490,0.67604607,221.87,221.79,6.8379581]
[1734291078776,0.67604607,221.87,221.77,6.8379581]
[1734291078981,0.67604607,221.87,221.78,0.07]
[1734291081488,0.67604607,221.87,221.78,6.9079581]
[1734291081782,23.902374,221.86,221.78,0.07]
[1734291081983,0.67604607,221.85,221.78,0.07]
[1734291085463,0.67604607,221.85,221.76,6.8379581]
[1734291091589,0.67604607,221.85,221.78,6.8379581]
[1734291091799,2.19954607,221.88,221.8,6.8379581]
[1734291092767,1.5235,221.88,221.8,6.8379581]
[1734291094592,1.5235,221.88,221.74,0.67612474]
[1734291094593,1.5235,221.88,221.76,31.2734]
[1734291094785,1.5235,221.88,221.83,6.8379581]
[1734291096199,1.5235,221.88,221.82,6.8379581]
[1734291098895,0.67604607,221.93,221.83,6.8379581]
[1734291100881,0.67604607,221.93,221.82,6.8379581]
[1734291101800,23.902374,221.92,221.82,6.8379581]
[1734291101979,0.67604607,221.91,221.82,6.8379581]
[1734291102179,0.67604607,221.91,221.81,6.8379581]
[1734291103190,0.67604607,221.91,221.82,6.8379581]
[1734291107989,0.67604607,221.91,221.81,6.8379581]
[1734291108181,0.67604607,221.91,221.8,6.8379581]
[1734291110510,1.5987,221.89,221.78,20.0]
[1734291110676,0.67604607,221.88,221.8,6.8379581]
[1734291111008,0.67604607,221.88,221.78,20.0]
[1734291111310,0.67604607,221.88,221.79,6.8379581]
[1734291112505,0.67604607,221.88,221.8,0.07]
[1734291114912,0.67604607,221.88,221.8,6.9079581]
[1734291115712,1.5987,221.89,221.82,6.8379581]
[1734291115892,1.5987,221.89,221.83,0.07]
[1734291117290,0.67604607,221.88,221.83,0.07]
[1734291119587,20.0,221.87,221.83,0.07]
[1734291119999,2.27474607,221.89,221.83,0.07]
[1734291122813,23.902374,221.88,221.83,0.07]
[1734291122997,0.67604607,221.87,221.83,0.07]
[1734291123311,0.67604607,221.87,221.79,0.07]
[1734291123891,0.67604607,221.87,221.79,6.9079581]
[1734291124221,0.67604607,221.87,221.8,6.8379581]
[1734291124417,0.67604607,221.87,221.81,0.07]
[1734291128118,0.67604607,221.87,221.78,6.8379581]
[1734291128430,0.67604607,221.87,221.75,0.67612365]
[1734291128634,1.6316,221.85,221.74,6.8379581]
[1734291128924,24.57842007,221.84,221.74,6.8379581]
[1734291131137,24.57842007,221.84,221.75,6.8379581]
[1734291131306,0.67604607,221.84,221.78,6.8379581]
[1734291132006,0.67604607,221.84,221.77,6.8379581]
[1734291132412,0.67604607,221.84,221.76,6.8379581]
[1734291132611,0.67604607,221.84,221.75,6.8379581]
[1734291133300,0.67604607,221.84,221.74,6.8379581]
[1734291133707,0.67604607,221.84,221.76,6.8379581]
[1734291135433,2.30764607,221.85,221.78,6.8379581]
[1734291135628,0.67604607,221.84,221.78,6.8379581]
[1734291136132,17.5307,221.9,221.81,6.8379581]
[1734291136133,0.67604607,221.86,221.81,6.8379581]
[1734291136313,0.67604607,221.89,221.82,6.8379581]
[1734291139850,23.902374,221.88,221.77,7.04271837]
[1734291140031,0.67604607,221.87,221.79,6.8379581]
[1734291140212,0.67604607,221.87,221.78,26.8379581]
[1734291140710,0.67604607,221.87,221.78,20.0]
[1734291140929,0.67604607,221.87,221.79,6.8379581]
[1734291141125,0.67604607,221.87,221.78,26.8379581]
[1734291141331,12.9024,221.86,221.78,20.0]
[1734291141509,0.67604607,221.85,221.78,20.0]
[1734291142526,0.67604607,221.85,221.73,7.04271837]
[1734291142728,0.67604607,221.85,221.76,20.0]
[1734291143143,0.67604607,221.85,221.77,0.07]
[1734291146920,23.902374,221.84,221.77,0.07]
[1734291147247,0.67604607,221.83,221.77,0.07]
[1734291147547,24.57842007,221.85,221.77,0.07]
[1734291147710,24.57842007,221.85,221.76,6.8379581]
[1734291148630,23.902374,221.83,221.73,7.04271837]
[1734291148945,11.2693,221.84,221.69,28.86934013]
[1734291148946,23.902374,221.81,221.72,6.8379581]
[1734291149144,0.67604607,221.8,221.7,7.04271837]
[1734291149356,0.67604607,221.8,221.72,6.8379581]
[1734291149714,0.67604607,221.8,221.71,6.8379581]
[1734291151625,0.67604607,221.8,221.73,0.07]
[1734291154339,23.902374,221.78,221.73,0.07]
[1734291154543,0.67604607,221.77,221.73,0.07]
[1734291154913,1.6277,221.79,221.73,6.9079581]
[1734291156036,1.6277,221.79,221.73,0.07]
[1734291157216,1.6277,221.79,221.73,6.9079581]
[1734291158513,1.6277,221.79,221.73,0.07]
[1734291160317,0.67604607,221.78,221.73,0.07]
[1734291164140,2.30374607,221.79,221.73,0.07]
[1734291165248,22.30374607,221.79,221.73,0.07]
[1734291165629,22.30374607,221.79,221.7,6.8379581]
[1734291166759,22.30374607,221.79,221.69,6.8379581]
[1734291168129,22.30374607,221.79,221.69,7.66837703]
[1734291168857,0.12549,221.78,221.69,7.66837703]
[1734291169156,0.67604607,221.77,221.69,7.66837703]
[1734291170042,0.80153607,221.78,221.69,7.66837703]
[1734291173466,0.80153607,221.78,221.68,7.66837703]
[1734291174980,0.80153607,221.78,221.67,7.66837703]
[1734291175460,0.12549,221.76,221.66,7.66837703]
[1734291175659,0.80153607,221.76,221.66,7.66837703]
[1734291178655,0.80153607,221.76,221.67,7.66837703]
[1734291181771,0.80153607,221.76,221.66,7.66837703]
[1734291183260,0.80153607,221.76,221.67,7.66837703]
[1734291183768,0.80153607,221.76,221.68,0.07]
[1734291185990,3.52005731,221.76,221.68,0.07]
[1734291186290,3.52005731,221.76,221.68,7.73837703]
[1734291186590,1.6277,221.79,221.71,7.66837703]
[1734291186766,0.67604607,221.78,221.71,7.66837703]
[1734291187090,0.67604607,221.78,221.72,0.07]
[1734291190687,1.6277,221.79,221.72,0.07]
[1734291190998,0.67604607,221.78,221.72,0.07]
[1734291191164,1.6277,221.79,221.72,0.07]
[1734291191370,0.67604607,221.78,221.72,0.07]
[1734291195601,23.902374,221.77,221.72,0.07]
[1734291195804,0.67604607,221.76,221.68,0.07]
[1734291196106,0.12549,221.75,221.68,0.07]
[1734291196810,23.902374,221.75,221.68,0.07]
[1734291196973,0.67604607,221.74,221.68,0.07]
[1734291197872,0.67604607,221.75,221.64,14.7110954]
[1734291198078,24.45293007,221.75,221.64,14.7110954]
[1734291199481,24.45293007,221.75,221.64,7.04271837]
[1734291199794,1.6206,221.74,221.64,7.04271837]
[1734291199988,0.67604607,221.73,221.64,7.04271837]
[1734291200903,0.67604607,221.73,221.66,0.07]
[1734291205287,0.67604607,221.73,221.66,7.73837703]
[1734291206803,0.67604607,221.73,221.66,0.07]
[1734291213308,0.67604607,221.73,221.66,7.73837703]
[1734291213619,0.67604607,221.73,221.66,0.07]
[1734291216606,0.67604607,221.73,221.64,7.04271837]
[1734291216838,0.67604607,221.73,221.62,14.7110954]
[1734291217847,0.67604607,221.73,221.61,14.7110954]
[1734291218414,43.902374,221.72,221.6,7.04271837]
[1734291218628,23.776884,221.7,221.59,14.7110954]
[1734291218939,0.67604607,221.69,221.59,14.7110954]
[1734291220317,0.67604607,221.69,221.6,7.66837703]
[1734291220727,0.67604607,221.69,221.61,7.66837703]
[1734291223631,0.67604607,221.69,221.62,7.66837703]
[1734291223828,0.67604607,221.71,221.62,7.66837703]
[1734291224649,0.67604607,221.71,221.61,7.66837703]
[1734291225029,0.67604607,221.71,221.6,7.66837703]
[1734291228235,0.67604607,221.71,221.61,7.66837703]
[1734291232927,0.67604607,221.71,221.63,0.07]
[1734291236153,20.0,221.7,221.63,0.07]
[1734291236351,0.67604607,221.69,221.63,0.07]
[1734291240935,2.77221233,221.71,221.63,0.07]
[1734291241133,0.67604607,221.7,221.63,0.07]
[1734291244256,0.67604607,221.72,221.64,7.66837703]
[1734291245027,0.67604607,221.72,221.63,0.07]
[1734291245028,0.67604607,221.72,221.65,7.66837703]
[1734291246159,0.67604607,221.72,221.64,7.66837703]
[1734291248070,0.67604607,221.72,221.61,7.04271837]
[1734291248281,0.67604607,221.72,221.64,7.66837703]
[1734291248884,2.29664607,221.74,221.66,7.66837703]
[1734291249087,2.29664607,221.74,221.67,7.66837703]
[1734291249785,2.29664607,221.74,221.66,7.66837703]
[1734291250088,1.6206,221.74,221.66,7.66837703]
[1734291251378,1.6206,221.74,221.66,6.16837703]
[1734291251985,0.67604607,221.73,221.66,6.16837703]
[1734291252780,0.67604607,221.73,221.63,7.04271837]
[1734291253086,0.67604607,221.73,221.64,7.66837703]
[1734291254374,0.67604607,221.73,221.64,6.66837703]
[1734291256580,0.67604607,221.73,221.63,9.49012209]
[1734291256767,0.67604607,221.73,221.64,7.66837703]